bitfinex-derivatives/quotes_SOLF0:USTF0_20241208
["timestamp","ask_amount","ask_price","bid_price","bid_amount"]
[1733674269407,6.53810221,237.44,237.37,3.72363365]
[1733674269610,6.53810221,237.44,237.38,2.67041145]
[1733674269803,6.53810221,237.44,237.37,6.53810221]
[1733674270009,6.53810221,237.44,237.38,2.66993176]
[1733674270211,6.53810221,237.44,237.37,6.53810221]
[1733674270409,6.53810221,237.44,237.38,2.66895651]
[1733674270609,6.53810221,237.44,237.37,6.53810221]
[1733674271208,8.47810221,237.46,237.41,2.1046]
[1733674272411,8.47810221,237.46,237.4,6.53810221]
[1733674273421,2.1043,237.45,237.39,2.1048]
[1733674274114,2.1047,237.41,237.35,2.1051]
[1733674274421,6.53810221,237.4,237.35,2.1051]
[1733674274813,6.53810221,237.4,237.32,6.53810221]
[1733674275014,6.53810221,237.38,237.3,1.3602]
[1733674275209,6.53810221,237.38,237.31,2.66906403]
[1733674275409,6.53810221,237.38,237.3,7.89830221]
[1733674275711,6.53810221,237.38,237.3,1.3602]
[1733674275916,6.53810221,237.38,237.31,6.53810221]
[1733674276512,6.53810221,237.38,237.32,2.1054]
[1733674276709,6.53810221,237.36,237.29,6.53810221]
[1733674276909,8.47810221,237.36,237.3,2.66862862]
[1733674277110,8.47810221,237.36,237.29,6.53810221]
[1733674277314,8.47810221,237.36,237.31,2.1055]
[1733674278019,8.47810221,237.36,237.32,2.1054]
[1733674279118,8.47810221,237.36,237.31,6.53810221]
[1733674280713,6.53810221,237.34,237.25,1.94]
[1733674280919,6.53810221,237.34,237.23,1.3328]
[1733674281121,6.53810221,237.34,237.27,6.53810221]
[1733674281509,6.53810221,237.34,237.28,2.1057]
[1733674282109,6.53810221,237.34,237.23,1.3328]
[1733674282110,10.58330221,237.36,237.29,6.53810221]
[1733674282917,6.53810221,237.34,237.28,2.1058]
[1733674283718,6.53810221,237.34,237.27,6.53810221]
[1733674283919,6.53810221,237.34,237.29,2.1057]
[1733674284516,8.47810221,237.36,237.31,2.1055]
[1733674284816,1.94,237.36,237.31,6.53810221]
[1733674285719,1.94,237.36,237.33,2.1053]
[1733674287519,6.53810221,237.41,237.35,6.53810221]
[1733674287721,1.94,237.4,237.35,6.53810221]
[1733674288418,6.53810221,237.41,237.35,6.53810221]
[1733674288622,1.94,237.4,237.36,2.1051]
[1733674290020,6.53810221,237.39,237.33,2.1053]
[1733674290222,6.53810221,237.37,237.33,2.1053]
[1733674290627,6.53810221,237.37,237.3,6.53810221]
[1733674290829,8.64290221,237.39,237.34,2.1053]
[1733674291224,6.53810221,237.39,237.34,2.1053]
[1733674291428,1.94,237.4,237.37,2.105]
[1733674291623,1.94,237.4,237.34,6.53810221]
[1733674292033,6.53810221,237.42,237.34,6.53810221]
[1733674292228,1.94,237.41,237.34,6.53810221]
[1733674292431,1.94,237.41,237.38,2.1048]
[1733674292628,8.47810221,237.45,237.38,6.53810221]
[1733674293129,6.53810221,237.43,237.4,2.1047]
[1733674297131,6.53810221,237.43,237.39,2.1048]
[1733674297431,1.94,237.47,237.4,6.53810221]
[1733674297628,6.53810221,237.46,237.44,2.1044]
[1733674297829,1.2867,237.51,237.43,6.53810221]
[1733674298135,1.2867,237.51,237.45,2.1043]
[1733674298136,6.53810221,237.48,237.45,2.1043]
[1733674301736,10.58200221,237.5,237.45,2.1043]
[1733674301936,8.47810221,237.5,237.46,2.1042]
[1733674303428,8.47810221,237.5,237.44,2.1043]
[1733674303429,2.1039,237.49,237.44,2.1043]
[1733674303630,2.1039,237.49,237.43,6.53810221]
[1733674304631,6.53810221,237.44,237.4,2.1047]
[1733674306333,6.53810221,237.44,237.39,2.1048]
[1733674306534,6.53810221,237.4,237.33,3.9635]
[1733674306735,6.53810221,237.4,237.33,2.6839]
[1733674306940,6.53810221,237.4,237.34,6.53810221]
[1733674307333,6.53810221,237.42,237.34,6.53810221]
[1733674307535,6.53810221,237.42,237.35,2.1052]
[1733674308737,8.64270221,237.42,237.35,2.1052]
[1733674309740,6.53810221,237.4,237.35,2.1052]
[1733674310043,8.47810221,237.4,237.35,2.1052]
[1733674311147,8.47810221,237.4,237.31,2.1055]
[1733674311148,6.53810221,237.36,237.31,2.1055]
[1733674311441,6.53810221,237.36,237.29,6.53810221]
[1733674311939,6.53810221,237.36,237.3,2.1056]
[1733674313442,6.53810221,237.34,237.28,2.1057]
[1733674313941,6.53810221,237.34,237.29,2.1057]
[1733674314445,6.53810221,237.34,237.26,1.3657]
[1733674314744,6.53810221,237.34,237.28,2.1058]
[1733674315343,6.53810221,237.3,237.14,1.94]
[1733674315538,4.2088,237.44,237.14,1.94]
[1733674315539,6.53810221,237.24,237.15,1.68656333]
[1733674315741,8.47810221,237.24,237.16,6.53810221]
[1733674316443,2.1067,237.19,237.15,2.74066541]
[1733674316643,6.53810221,237.2,237.15,2.74066541]
[1733674317033,6.53810221,237.2,237.15,10.90141905]
[1733674317239,2.1065,237.21,237.15,8.16075364]
[1733674317841,2.1065,237.21,237.12,4.8027]
[1733674318145,2.1065,237.21,237.13,2.1071]
[1733674318438,10.24363852,237.23,237.12,1.3375]
[1733674318745,10.24363852,237.2,237.07,1.94]
[1733674318941,10.24363852,237.2,237.06,10.24363852]
[1733674318942,1.94,237.19,237.08,3.73391699]
[1733674319144,2.1068,237.17,237.09,2.67948199]
[1733674319439,2.1068,237.17,237.08,1.054435]
[1733674319647,1.94,237.19,237.1,2.1074]
[1733674319942,1.94,237.19,237.07,1.94]
[1733674320147,1.94,237.19,237.08,3.73019474]
[1733674320338,2.1068,237.17,237.1,2.1074]
[1733674320843,1.94,237.19,237.08,2.1075]
[1733674321547,1.94,237.19,237.09,2.1075]
[1733674321739,4.0467,237.19,237.08,10.24363852]
[1733674322349,4.0467,237.19,237.07,1.94]
[1733674322350,2.672,237.33,237.11,10.24363852]
[1733674322646,10.24363852,237.27,237.07,1.94]
[1733674322846,1.94,237.26,237.1,10.24363852]
[1733674323048,2.1062,237.24,237.16,2.1068]
[1733674323645,1.94,237.26,237.14,2.107]
[1733674323646,2.1063,237.23,237.14,2.107]
[1733674323843,2.1063,237.23,237.12,12.18363852]
[1733674324445,2.1061,237.25,237.12,12.18363852]
[1733674324653,1.94,237.26,237.13,1.3482]
[1733674324849,10.24363852,237.27,237.13,1.3482]
[1733674324850,1.94,237.25,237.15,10.24363852]
[1733674325244,2.1059,237.28,237.19,2.1065]
[1733674325444,1.94,237.27,237.16,1.3963]
[1733674325651,1.94,237.27,237.17,1.94]
[1733674326352,1.94,237.27,237.16,1.3963]
[1733674326353,10.24363852,237.26,237.16,1.3963]
[1733674326553,10.24363852,237.23,237.16,1.3963]
[1733674327555,10.24363852,237.23,237.16,3.5031]
[1733674328347,10.24363852,237.23,237.14,2.107]
[1733674328546,1.94,237.22,237.14,2.107]
[1733674329751,1.94,237.22,237.13,2.7227]
[1733674329955,1.94,237.23,237.13,2.7227]
[1733674330453,1.94,237.23,237.18,2.1067]
[1733674331555,1.94,237.23,237.13,2.7227]
[1733674332253,1.94,237.23,237.15,10.24363852]
[1733674332447,10.24363852,237.29,237.15,10.24363852]
[1733674332448,1.94,237.27,237.15,10.24363852]
[1733674333246,4.0459,237.27,237.15,10.24363852]
[1733674333650,10.24363852,237.29,237.15,10.24363852]
[1733674333850,1.3269,237.32,237.18,10.24363852]
[1733674334150,1.94,237.32,237.19,1.94]
[1733674334357,4.0455,237.32,237.24,2.1061]
[1733674334747,4.0455,237.32,237.19,1.94]
[1733674336855,1.94,237.36,237.21,10.24363852]
[1733674337057,1.94,237.36,237.22,1.2791]
[1733674337452,2.1053,237.34,237.23,1.33]
[1733674337653,1.94,237.36,237.24,1.94]
[1733674338557,2.1052,237.35,237.28,2.1058]
[1733674338953,4.0452,237.35,237.28,2.1058]
[1733674339355,2.1053,237.34,237.28,2.1058]
[1733674340156,1.94,237.35,237.24,1.94]
[1733674340665,1.94,237.35,237.3,2.1056]
[1733674340959,1.94,237.39,237.24,12.18363852]
[1733674341355,4.0449,237.39,237.27,10.24363852]
[1733674341755,4.0449,237.39,237.28,1.3571]
[1733674341957,4.0449,237.39,237.29,1.94]
[1733674342261,4.0449,237.39,237.33,2.1053]
[1733674343254,10.24363852,237.36,237.23,1.33]
[1733674343557,10.24363852,237.36,237.17,1.3727]
[1733674343558,10.24363852,237.29,237.17,1.3727]
[1733674343758,12.18363852,237.29,237.17,4.6166]
[1733674344557,2.1059,237.28,237.21,2.1064]
[1733674344858,2.1059,237.28,237.17,4.6166]
[1733674344859,10.24363852,237.26,237.17,2.6766]
[1733674345561,10.24363852,237.26,237.19,2.1066]
[1733674345562,12.34963852,237.26,237.19,2.1066]
[1733674349063,2.1059,237.27,237.2,2.1065]
[1733674349264,1.94,237.29,237.17,2.6766]
[1733674349265,12.18363852,237.29,237.17,2.6766]
[1733674350158,2.1059,237.28,237.21,2.1064]
[1733674350359,12.18363852,237.29,237.17,2.6766]
[1733674351165,10.24363852,237.28,237.17,2.6766]
[1733674352361,2.106,237.27,237.2,2.1065]
[1733674352758,10.24363852,237.28,237.17,2.6766]
[1733674353064,2.1061,237.26,237.18,2.66928462]
[1733674353264,2.1061,237.26,237.17,2.6766]
[1733674353468,2.1061,237.26,237.18,3.72436219]
[1733674353665,2.1061,237.26,237.17,2.6766]
[1733674354168,10.24363852,237.28,237.19,2.1065]
[1733674354469,2.1061,237.25,237.19,2.1065]
[1733674359279,8.65923054,237.25,237.19,2.1065]
[1733674359582,8.65923054,237.25,237.17,9.22973054]
[1733674359765,8.65923054,237.25,237.2,2.1065]
[1733674360164,6.55313054,237.25,237.2,2.1065]
[1733674360972,6.55313054,237.25,237.21,2.1064]
[1733674362067,6.55313054,237.25,237.2,2.1065]
[1733674364178,6.55313054,237.25,237.21,2.1064]
[1733674364365,6.51122756,237.25,237.21,2.1064]
[1733674365064,6.55313054,237.23,237.11,1.3238]
[1733674365271,6.55313054,237.18,237.12,4.92475859]
[1733674365467,6.55313054,237.18,237.09,6.55313054]
[1733674365468,6.55313054,237.18,237.13,3.73357535]
[1733674365677,6.55313054,237.18,237.14,2.67940334]
[1733674365867,6.55313054,237.18,237.12,2.1072]
[1733674366871,4.0466,237.19,237.12,2.1072]
[1733674367174,1.94,237.19,237.13,6.55313054]
[1733674368268,1.94,237.19,237.14,2.107]
[1733674368772,8.49313054,237.19,237.14,2.107]
[1733674368973,8.49313054,237.19,237.08,1.3565]
[1733674368974,8.49313054,237.19,237.12,2.1071]
[1733674369275,8.49313054,237.19,237.12,8.66023054]
[1733674369977,10.59973054,237.19,237.13,3.73547959]
[1733674370175,10.59973054,237.19,237.12,8.66023054]
[1733674370968,10.59973054,237.19,237.12,2.1071]
[1733674371477,8.49313054,237.19,237.12,2.1071]
[1733674371679,2.1067,237.18,237.12,2.1071]
[1733674371973,6.55313054,237.17,237.1,6.55313054]
[1733674372177,6.55313054,237.17,237.11,3.73446674]
[1733674372477,6.55313054,237.17,237.1,6.55313054]
[1733674372674,6.55313054,237.17,237.11,3.73436075]
[1733674372879,1.94,237.19,237.07,2.6494]
[1733674372880,6.55313054,237.15,237.07,2.6494]
[1733674373176,6.55313054,237.13,237.02,1.94]
[1733674373379,6.55313054,237.13,237.06,6.55313054]
[1733674373682,6.55313054,237.13,237.07,3.73488283]
[1733674373978,6.55313054,237.13,237.06,6.55313054]
[1733674374179,6.55313054,237.13,237.07,2.68032648]
[1733674374377,6.55313054,237.13,237.06,6.55313054]
[1733674374672,2.1072,237.12,237.06,6.55313054]
[1733674374977,2.1072,237.12,237.07,2.67951154]
[1733674375178,2.1074,237.1,237.03,2.108]
[1733674375374,6.55313054,237.11,237.04,10.28665195]
[1733674375579,6.55313054,237.11,237.05,2.67893737]
[1733674375874,1.94,237.14,237.08,6.55313054]
[1733674376780,4.0471,237.14,237.08,6.55313054]
[1733674377278,1.94,237.14,237.08,6.55313054]
[1733674377479,8.49313054,237.17,237.1,6.55313054]
[1733674377681,1.94,237.18,237.12,6.55313054]
[1733674377871,8.49313054,237.19,237.12,6.55313054]
[1733674378076,2.1068,237.17,237.12,6.55313054]
[1733674378276,8.65993054,237.17,237.11,2.1073]
[1733674379288,2.1068,237.17,237.11,2.1073]
[1733674379583,1.94,237.19,237.06,10.24554069]
[1733674379886,10.24554069,237.08,236.97,4.15613526]
[1733674380082,10.24554069,237.08,236.92,10.24554069]
[1733674380083,1.94,237.07,236.99,2.1083]
[1733674380380,10.24554069,237.05,236.89,4.15613526]
[1733674380584,10.24554069,237.08,236.93,5.06602211]
[1733674380782,2.1079,237.05,236.96,2.1086]
[1733674380985,1.94,237.07,236.95,10.24554069]
[1733674381393,10.24554069,237.08,236.95,10.24554069]
[1733674381582,1.94,237.07,236.95,10.24554069]
[1733674382484,2.1079,237.05,236.93,1.3285]
[1733674383078,1.94,237.07,236.93,1.3285]
[1733674383279,10.24554069,237.02,236.93,1.3285]
[1733674383485,1.94,237.01,236.93,1.3285]
[1733674384680,1.94,237.01,236.93,3.4374]
[1733674385482,1.94,237.01,236.93,1.3285]
[1733674385688,1.94,237.01,236.94,2.1088]
[1733674385884,1.94,237.04,236.93,1.3285]
[1733674386083,1.94,237.04,236.94,1.94]
[1733674387489,1.94,237.04,236.95,2.67215728]
[1733674387789,1.94,237.04,236.94,1.94]
[1733674388084,1.94,237.04,237.0,2.1083]
[1733674389481,10.24554069,237.08,236.94,1.94]
[1733674389685,12.18554069,237.08,237.01,2.1082]
[1733674389892,10.24554069,237.08,237.01,2.1082]
[1733674392481,10.24554069,237.08,236.99,2.1083]
[1733674392892,12.35314069,237.08,236.99,2.1083]
[1733674393191,10.24554069,237.05,236.93,1.3285]
[1733674393393,2.1079,237.04,236.94,9.94400147]
[1733674393595,1.94,237.03,236.95,3.72772166]
[1733674393895,1.94,237.03,236.94,1.94]
[1733674394096,1.94,237.03,236.95,3.72792948]
[1733674394387,1.94,237.03,236.95,2.1087]
[1733674394794,1.94,237.03,236.94,1.94]
[1733674395093,1.94,237.03,236.96,2.1086]
[1733674395683,1.94,237.03,236.98,2.1084]
[1733674395888,1.94,237.03,236.94,1.94]
[1733674396093,1.94,237.03,236.95,3.72774518]
[1733674396288,1.94,237.03,236.96,3.72774518]
[1733674396490,1.94,237.03,236.94,1.94]
[1733674396690,1.94,237.03,236.95,3.72808739]
[1733674396890,1.94,237.03,236.94,1.94]
[1733674397095,1.94,237.03,236.99,2.1084]
[1733674401101,1.96,237.05,236.95,10.24554069]
[1733674401296,1.96,237.05,236.96,3.72961469]
[1733674401502,1.96,237.05,236.97,2.67464904]
[1733674401700,1.96,237.05,237.01,2.1081]
[1733674401899,1.96,237.05,236.95,10.24554069]
[1733674402097,1.96,237.05,236.96,3.72981131]
[1733674402293,1.96,237.05,236.97,3.72978099]
[1733674402597,1.96,237.05,236.95,10.24554069]
[1733674402798,1.96,237.05,236.96,3.72992577]
[1733674402994,1.96,237.05,236.97,2.67500215]
[1733674403305,1.96,237.05,236.98,2.67500215]
[1733674403599,1.96,237.05,237.03,2.1079]
[1733674403799,1.96,237.05,236.95,10.24554069]
[1733674403995,1.96,237.09,237.0,2.1082]
[1733674404303,1.96,237.09,236.95,10.24554069]
[1733674404495,1.96,237.09,236.96,10.89261119]
[1733674404696,1.96,237.09,237.03,2.1079]
[1733674406804,1.96,237.09,237.04,2.1079]
[1733674408204,1.96,237.1,236.99,1.96]
[1733674408403,10.24554069,237.11,237.0,5.69629]
[1733674408703,10.24554069,237.11,237.0,1.96]
[1733674409004,10.24554069,237.11,237.01,3.73558185]
[1733674409203,10.24554069,237.11,237.07,2.1076]
[1733674409795,10.24554069,237.11,237.01,1.3013]
[1733674410000,10.24554069,237.11,237.08,2.1075]
[1733674410304,1.96,237.13,237.08,2.1075]
[1733674411409,1.96,237.13,237.09,2.1075]
[1733674412709,1.3851,237.16,237.02,1.3303]
[1733674412710,4.2111,237.32,237.06,12.20554069]
[1733674412900,10.24554069,237.22,237.09,10.24554069]
[1733674413101,2.1066,237.19,237.12,2.1072]
[1733674413308,2.1066,237.19,237.11,6.55682616]
[1733674413309,6.55682616,237.17,237.11,6.55682616]
[1733674414513,2.6764,237.27,237.13,6.55682616]
[1733674414705,6.55682616,237.22,237.15,6.55682616]
[1733674415106,1.96,237.26,237.15,6.55682616]
[1733674415310,1.96,237.26,237.18,2.1066]
[1733674415311,12.20096692,237.26,237.18,2.1066]
[1733674415812,2.6764,237.27,237.12,12.20096692]
[1733674416011,2.6764,237.27,237.13,1.2872]
[1733674416012,1.96,237.26,237.13,1.2872]
[1733674416209,10.24096692,237.24,237.13,1.2872]
[1733674417717,2.1063,237.23,237.17,2.1067]
[1733674419717,10.24096692,237.24,237.13,1.2872]
[1733674419718,2.1064,237.22,237.13,1.2872]
[1733674419917,1.96,237.21,237.13,1.2872]
[1733674420619,1.96,237.21,237.15,2.1069]
[1733674420620,2.1065,237.2,237.15,2.1069]
[1733674420827,1.96,237.21,237.15,2.1069]
[1733674421026,4.0664,237.21,237.16,2.1068]
[1733674421218,1.96,237.21,237.13,1.2872]
[1733674422327,1.96,237.21,237.15,2.1069]
[1733674422521,2.1061,237.25,237.13,1.2872]
[1733674422722,10.24096692,237.27,237.14,10.24096692]
[1733674422916,10.24096692,237.27,237.13,1.2872]
[1733674422917,2.1056,237.31,237.17,10.24096692]
[1733674423116,1.96,237.3,237.18,1.96]
[1733674423520,4.0656,237.3,237.24,2.1061]
[1733674424324,4.0656,237.3,237.18,1.96]
[1733674424529,4.0656,237.3,237.25,2.106]
[1733674424717,2.1058,237.28,237.18,1.96]
[1733674424923,10.24096692,237.28,237.2,2.1064]
[1733674426026,10.24096692,237.22,237.13,1.2872]
[1733674426221,12.20096692,237.22,237.13,1.2872]
[1733674426522,12.20096692,237.22,237.15,2.1069]
[1733674426920,12.20096692,237.22,237.13,1.2872]
[1733674427222,14.30736692,237.22,237.13,1.2872]
[1733674428528,2.1064,237.21,237.15,2.1069]
[1733674430623,1.96,237.22,237.13,1.2872]
[1733674431929,1.96,237.22,237.13,11.52816692]
[1733674432428,1.96,237.22,237.17,2.1068]
[1733674432928,1.96,237.22,237.18,2.1067]
[1733674437133,1.96,237.22,237.2,2.1065]
[1733674437427,1.94,237.26,237.15,1.94]
[1733674437834,1.94,237.26,237.19,2.1065]
[1733674438126,1.94,237.26,237.15,1.94]
[1733674438127,10.24096692,237.25,237.15,1.94]
[1733674438529,2.1062,237.24,237.17,2.1067]
[1733674438926,2.1062,237.24,237.15,1.94]
[1733674439131,2.1062,237.24,237.15,8.49474422]
[1733674439132,6.55474422,237.22,237.15,8.49474422]
[1733674439728,6.55474422,237.16,236.94,31.402245]
[1733674440034,1.94,237.15,237.07,6.55474422]
[1733674440228,2.6954,237.21,237.07,6.55474422]
[1733674440229,8.49474422,237.16,237.07,6.55474422]
[1733674440426,6.55474422,237.12,237.04,6.55474422]
[1733674440629,1.94,237.16,237.02,6.55474422]
[1733674440630,6.55474422,237.1,237.02,6.55474422]
[1733674441136,6.55474422,237.08,237.02,6.55474422]
[1733674441535,6.55474422,237.1,237.02,6.55474422]
[1733674443131,1.2813,237.15,237.01,4.0482]
[1733674443132,2.1073,237.11,237.01,4.0482]
[1733674443737,10.25262773,237.13,237.01,1.94]
[1733674443934,2.1072,237.13,237.02,10.25262773]
[1733674444135,1.2813,237.15,237.06,2.1077]
[1733674444333,1.2813,237.15,237.02,10.25262773]
[1733674444530,3.3883,237.15,237.02,10.25262773]
[1733674445131,2.1071,237.14,237.05,2.1078]
[1733674446033,2.1071,237.14,237.06,1.94]
[1733674446534,10.25262773,237.13,237.05,1.94]
[1733674446832,10.25262773,237.13,237.03,1.94]
[1733674447739,2.1073,237.11,237.03,1.94]
[1733674449142,1.2813,237.15,237.03,1.94]
[1733674450132,3.3883,237.15,237.05,2.1078]
[1733674450336,3.3883,237.15,237.04,1.3295]
[1733674450639,1.2813,237.15,237.04,1.3295]
[1733674453640,2.1071,237.13,237.05,2.1078]
[1733674454344,2.107,237.14,237.07,2.1076]
[1733674454745,2.107,237.14,237.05,1.405]
[1733674455044,2.107,237.14,237.06,2.1077]
[1733674457640,2.107,237.14,237.07,2.1077]
[1733674458739,2.107,237.15,237.08,2.1075]
[1733674459638,10.25262773,237.16,237.05,1.405]
[1733674459845,1.94,237.17,237.1,2.1074]
[1733674460640,2.1069,237.16,237.1,2.1074]
[1733674463452,2.1069,237.16,237.11,2.1073]
[1733674465251,6.55854338,237.15,237.11,2.1073]
[1733674465756,6.55854338,237.15,237.08,8.51854338]
[1733674465757,6.55854338,237.15,237.12,2.1072]
[1733674467549,6.55854338,237.13,237.09,2.1075]
[1733674467750,6.55854338,237.11,237.05,1.96]
[1733674468143,6.55854338,237.11,237.07,2.1076]
[1733674468953,6.55854338,237.13,237.06,6.55854338]
[1733674469148,6.55854338,237.13,237.09,2.1074]
[1733674469444,2.107,237.15,237.08,6.55854338]
[1733674469445,6.55854338,237.15,237.08,6.55854338]
[1733674469846,6.55854338,237.15,237.05,1.96]
[1733674470048,6.55854338,237.15,237.07,6.55854338]
[1733674470853,6.55854338,237.15,237.09,2.1074]
[1733674472951,8.66574338,237.13,237.07,2.1076]
[1733674473150,6.55854338,237.11,237.04,1.96]
[1733674476254,6.55854338,237.13,237.08,2.1076]
[1733674477853,6.55854338,237.15,237.07,6.55854338]
[1733674478561,6.55854338,237.15,237.09,6.55854338]
[1733674478858,6.55854338,237.15,237.11,2.1073]
[1733674479759,1.96,237.21,237.11,6.55854338]
[1733674479953,6.55854338,237.19,237.11,6.55854338]
[1733674480655,6.55854338,237.19,237.15,2.1069]
[1733674480849,6.55854338,237.21,237.15,6.55854338]
[1733674481254,6.55854338,237.21,237.17,2.1068]
[1733674482859,2.1063,237.23,237.18,2.1067]
[1733674483154,8.51854338,237.24,237.17,6.55854338]
[1733674484557,8.51854338,237.24,237.2,2.1065]
[1733674485665,8.51854338,237.24,237.21,2.1064]
[1733674485854,1.96,237.24,237.21,2.1064]
[1733674486165,6.55854338,237.25,237.17,6.55854338]
[1733674486861,6.55854338,237.25,237.21,2.1063]
[1733674487364,6.55854338,237.25,237.19,6.55854338]
[1733674487955,1.96,237.28,237.19,6.55854338]
[1733674488158,1.96,237.28,237.2,1.96]
[1733674488159,6.55854338,237.27,237.2,1.96]
[1733674488357,1.96,237.28,237.2,1.96]
[1733674488560,6.55854338,237.27,237.2,1.96]
[1733674488759,1.96,237.28,237.2,1.96]
[1733674488760,6.55854338,237.28,237.21,6.55854338]
[1733674489155,6.55854338,237.28,237.23,2.1062]
[1733674489361,6.55854338,237.28,237.21,6.55854338]
[1733674490363,6.55854338,237.28,237.23,2.1062]
[1733674490968,6.55854338,237.26,237.21,2.1063]
[1733674491161,6.55854338,237.24,237.21,2.1063]
[1733674492562,6.55854338,237.24,237.18,1.94]
[1733674493662,6.55854338,237.24,237.2,2.1065]
[1733674494664,6.55854338,237.24,237.21,2.1064]
[1733674494868,6.55854338,237.26,237.21,2.1064]
[1733674495964,6.55854338,237.26,237.2,2.1065]
[1733674501166,6.55854338,237.26,237.18,1.94]
[1733674501367,6.55854338,237.26,237.19,6.55854338]
[1733674501869,8.66454338,237.26,237.2,2.1064]
[1733674505267,8.66474338,237.24,237.18,1.94]
[1733674505468,8.66474338,237.24,237.19,2.1066]
[1733674505973,6.55854338,237.24,237.2,2.1065]
[1733674506674,6.55854338,237.28,237.22,6.55854338]
[1733674506869,6.55854338,237.32,237.24,6.55854338]
[1733674507476,6.55854338,237.32,237.23,1.94]
[1733674507477,6.55854338,237.32,237.26,6.55854338]
[1733674507965,6.55854338,237.32,237.24,6.55854338]
[1733674508567,2.1056,237.31,237.26,2.106]
[1733674509164,6.55854338,237.32,237.26,2.106]
[1733674509377,8.66394338,237.32,237.26,2.106]
[1733674510275,6.55854338,237.3,237.24,2.1061]
[1733674510569,6.55854338,237.28,237.2,6.55854338]
[1733674510774,8.66434338,237.28,237.2,2.1065]
[1733674511081,6.55854338,237.26,237.18,6.55854338]
[1733674511267,2.1062,237.23,237.18,2.1066]
[1733674511468,6.55854338,237.22,237.18,2.1066]
[1733674511768,6.55854338,237.22,237.17,5.3359]
[1733674511974,6.55854338,237.2,237.16,1.3969]
[1733674512369,6.55854338,237.18,237.09,1.3619]
[1733674512567,6.55854338,237.18,237.1,10.09216916]
[1733674512771,6.55854338,237.16,237.11,2.6781302]
[1733674512972,6.55854338,237.16,237.1,1.94]
[1733674514076,1.2796,237.22,237.11,9.23911461]
[1733674514077,6.55854338,237.19,237.11,9.23911461]
[1733674514277,6.55854338,237.19,237.11,6.55854338]
[1733674514472,6.55854338,237.19,237.12,2.1071]
[1733674515374,6.55854338,237.19,237.13,2.1071]
[1733674517173,6.55854338,237.19,237.14,2.107]
[1733674517373,6.55854338,237.19,237.13,6.55854338]
[1733674517574,6.55854338,237.19,237.14,2.107]
[1733674518371,6.55854338,237.17,237.14,2.107]
[1733674518579,6.55854338,237.15,237.12,2.1072]
[1733674518777,6.55854338,237.13,237.09,1.2753]
[1733674518979,6.55854338,237.11,237.05,1.94]
[1733674519172,6.55854338,237.11,237.06,2.68633285]
[1733674519380,6.55854338,237.09,237.04,1.94]
[1733674519679,6.55854338,237.09,237.05,3.7416793]
[1733674519975,6.55854338,237.09,237.04,1.94]
[1733674520773,6.55854338,237.09,237.04,4.0479]
[1733674521787,6.55854338,237.11,237.05,2.1078]
[1733674521989,6.55854338,237.11,237.04,8.49854338]
[1733674523686,6.55854338,237.11,237.04,6.55854338]
[1733674524086,6.55854338,237.11,237.03,1.3743]
[1733674524686,6.55854338,237.11,237.05,2.1078]
[1733674527404,2.1074,237.1,237.03,6.55854338]
[1733674528401,6.55854338,237.09,237.01,52.83725617]
[1733674528603,2.1078,237.06,237.0,1.94]
[1733674528904,2.1078,237.06,236.98,7.90854338]
[1733674529107,6.55854338,237.05,236.94,1.94]
[1733674529403,8.66644338,237.05,236.96,6.55854338]
[1733674530303,6.55854338,237.03,236.88,3.9149]
[1733674530509,6.55854338,237.03,236.94,6.55854338]
[1733674530510,8.66654338,237.03,236.94,6.55854338]
[1733674531601,8.66654338,237.03,236.96,2.1086]
[1733674531806,6.55854338,237.01,236.88,3.9149]
[1733674532010,8.49854338,237.01,236.89,10.90681379]
[1733674532311,6.55854338,236.99,236.93,6.55854338]
[1733674532706,6.55854338,237.03,236.95,6.55854338]
[1733674532911,1.94,237.02,236.95,6.55854338]
[1733674533111,6.55854338,237.01,236.95,6.55854338]